Cogmind - Beta 16 @@@ ROGUE MODE // 2026.01.18 @ 15:04:29 Player: MAC-Bot 2145 Result: Destroyed by D-53 Grenadier with Mini Grenade Launcher Performance ------------- Evolutions (0) 0 Regions Visited (4) 800 Robots Destroyed (7) 35 Value Destroyed (158) 158 Prototype IDs (23) 460 Alien Tech Used (0) 0 Bonus (300) 300 TOTAL SCORE: 1753 Bonus ------- Aligned with FarCom 300 Cogmind --------- Core Integrity 0/250 Matter 300/300 Energy 99/100 System Corruption 0% Temperature Cool (0) Movement Core (200) Ox3 Location -9/Mines Parts ------- > --- POWER (1) -------- (None) > --- PROPULSION (2) --- (None) > --- UTILITY (2) ------ Medium Storage Unit > --- WEAPON (2) ------- (None) > --- INVENTORY (10) --- Light Cannon Grenade Launcher Peak State ------------ > --- POWER ------------ Light Ion Engine > --- PROPULSION ------- Wheel Wheel > --- UTILITY ---------- Medium Storage Unit Cloak of Protection > --- WEAPON ----------- AWS/Gauss > --- INVENTORY -------- Light Ion Engine Light Ion Engine Wheel Small Storage Unit Light Armor Plating Small Laser Assault Rifle Grenade Launcher [Rating: 28] Favorites ----------- Power Light Ion Engine Engine Light Ion Engine Propulsion Wheel Wheel Wheel Utility Medium Storage Unit Device Cloak of Protection Storage Medium Storage Unit Protection Light Armor Plating Weapon Assault Rifle Energy Gun Small Laser Ballistic Gun Assault Rifle Ballistic Cannon Light Cannon Launcher Grenade Launcher Build | -11 -10 -10 -10 -9 ------- Run | Yrd Mat Min Exi Min Slots Evolved . | . . . . . Power . | . . . . . Propulsion . | . . . . . Utility . | . . . . . Weapon . | . . . . . Parts Attached 17 | 6 6 1 2 2 Power 4 | 1 2 . . 1 Engine 4 | 1 2 . . 1 Core . | . . . . . Reactor . | . . . . . Propulsion 3 | 2 1 . . . Treads . | . . . . . Leg . | . . . . . Wheel 3 | 2 1 . . . Hover . | . . . . . Flight . | . . . . . Utility 4 | 1 2 . 1 . Device 1 | . . . 1 . Storage 2 | 1 1 . . . Processor . | . . . . . Hackware . | . . . . . Protection 1 | . 1 . . . Artifact . | . . . . . Weapon 6 | 2 1 1 1 1 Energy Gun 1 | 1 . . . . Energy Cannon . | . . . . . Ballistic Gun 3 | 1 . . 1 1 Ballistic Cannon 1 | . . 1 . . Launcher 1 | . 1 . . . Special Weapon . | . . . . . Impact Weapon . | . . . . . Slashing Weapon . | . . . . . Piercing Weapon . | . . . . . Special Melee Weapon . | . . . . . Unidentified Prototypes 2 | . . . 2 . Parts Lost 10 | . . . . 10 Power 3 | . . . . 3 Propulsion 3 | . . . . 3 Utility 2 | . . . . 2 Weapon 2 | . . . . 2 Highest Loss Streak 10 | . . . . 10 To Critical Strikes . | . . . . . Average Backups 7 | 3 7 9 8 5 Power 1 | . 1 2 2 1 Propulsion 2 | 2 3 3 2 . Utility . | . . 1 1 . Weapon 2 | . 1 3 3 3 Tool/Special . | . . . . . Unused Backups 6 | . 3 . 3 . Power 1 | . 1 . . . Propulsion 4 | . 2 . 2 . Utility 1 | . . . 1 . Weapon . | . . . . . Tool/Special . | . . . . . Average Slot Usage (%) 91 | . 88 100 95 76 Engine 13 | . 14 14 14 12 Wheel 27 | . 28 28 28 22 Device 2 | . . . 4 6 Storage 14 | . 14 14 14 14 Protection 7 | . 3 14 9 3 Energy Gun 1 | . 3 . . 3 Ballistic Gun 13 | . 14 14 14 11 Ballistic Cannon 5 | . . 4 10 . Launcher 4 | . 10 9 . . Peak Build Rating 28 | 6 7 7 28 28 Average Rating 10 | 4 6 7 13 19 On Entrance 9 | . 6 7 7 28 Avg Prop Armor Cover (%) . | . . . . . Naked Turns . | . . . . . Heaviest Build 31 | 11 21 21 31 31 Greatest Support 20 | 20 20 20 20 20 Greatest Overweight (x) 6 | 2 1 1 1 6 Average Overweight (x) . | . . 1 1 1 Largest Inventory Capacity 10 | 8 10 10 10 10 Average Capacity 9 | 7 8 10 10 10 Most Carried 10 | 6 9 9 10 8 Average Carried 7 | 3 7 9 8 5 Final Capacity 10 | 8 10 10 10 10 Final Carried 9 | 6 9 9 8 2 Class Distribution -------------------- 100% | Mutant Dominant Class ---------------- Mutant | -10/Materials Mutant | -10/Mines Mutant | -10/Exiles Mutant | -9/Mines Resources | -11 -10 -10 -10 -9 ----------- Run | Yrd Mat Min Exi Min Matter Collected 563 | 202 122 . . 239 Remotely . | . . . . . Salvage Created 332 | . 93 . . 239 Parts 16 | . 16 . . . Haulers Intercepted . | . . . . . Recyclers Shooed 1 | . 1 . . . Parts Field Recycled . | . . . . . Retrieved Matter . | . . . . . Parts Self-Destructed . | . . . . . Prevented . | . . . . . Parts Restored . | . . . . . Kills | -11 -10 -10 -10 -9 ------- Run | Yrd Mat Min Exi Min Combat Hostiles Destroyed 22 | . 7 . . 15 Guns 18 | . 3 . . 15 AOE 4 | . 4 . . . Classes Destroyed 3 | . 2 . . 1 Swarmer 5 | . 5 . . . Grunt 2 | . 2 . . . Assembled 15 | . . . . 15 Best Kill Streak 15 | . 3 . . 15 Combat Bots Only 15 | . 3 . . 15 Max Kills in Single Turn 2 | . 2 . . 2 Gunslinging . | . . . . . Exploded 2 | . 2 . . . Melee . | . . . . . Uniques/NPCs Destroyed . | . . . . . Combat | -11 -10 -10 -10 -9 -------- Run | Yrd Mat Min Exi Min Hostile Shots Fired 82 | . 22 . . 60 Missed 16 | . 10 . . 6 Hits 66 | . 12 . . 54 Melee 15 | . . . . 15 Projectile 51 | . 12 . . 39 AOE 10 | . . . . 10 Part Disruptions 1 | . . . . 1 Damage Taken 1443 | . 244 . . 1199 Core 271 | . 70 . . 201 Absorbed by Shields . | . . . . . Core Remaining (%) 100 | 100 . . . . Volleys Fired 25 | . 22 . . 3 Largest 2 | . 2 . . 2 Hottest 60 | . 50 . . 60 Shots Fired 74 | . 33 . . 41 Gun 63 | . 22 . . 41 Cannon . | . . . . . Launcher 11 | . 11 . . . Special . | . . . . . Kinetic 60 | . 22 . . 38 Thermal 3 | . . . . 3 Explosive 11 | . 11 . . . Electromagnetic . | . . . . . Robot Hit Streak 13 | . 6 . . 13 Robot Miss Streak 4 | . 4 . . 4 Penetration Max . | . . . . . Secondary Targets . | . . . . . Autonomous 36 | . . . . 36 Shots Hit Robots 43 | . 11 . . 32 Core Hits 26 | . 9 . . 17 Critical Kills . | . . . . . Critical Parts Destroyed 1 | . . . . 1 Critical Strikes 1 | . . . . 1 Destroy 1 | . . . . 1 Melee Attacks . | . . . . . Impact . | . . . . . Slashing . | . . . . . Piercing . | . . . . . Sneak Attacks . | . . . . . Combat Hostiles . | . . . . . Follow-up Attacks . | . . . . . Damage Inflicted 1430 | . 478 . . 952 Guns 1033 | . 91 . . 942 Cannons . | . . . . . Explosions 387 | . 387 . . . Melee . | . . . . . Ramming 10 | . . . . 10 Kinetic 1023 | . 91 . . 932 Thermal 10 | . . . . 10 Explosive 387 | . 387 . . . Electromagnetic . | . . . . . Impact . | . . . . . Slashing . | . . . . . Piercing . | . . . . . Highest Corruption . | . . . . . Average Corruption . | . . . . . Corruption Purged . | . . . . . Corruption Blocked . | . . . . . Overload Shots . | . . . . . Overflow Damage . | . . . . . Projectiles . | . . . . . Explosions . | . . . . . Melee . | . . . . . Knockbacks . | . . . . . Impact . | . . . . . Kinetic . | . . . . . Secondary . | . . . . . Self-Inflicted Damage 144 | . 140 . . 4 Shots 4 | . 4 . . . Rammed 2 | . . . . 2 Targets Rammed 2 | . . . . 2 Kicked . | . . . . . Crushed . | . . . . . Highest Temperature 27 | . 2 . . 27 Average Temperature 12 | . 2 . . 14 Received Heat Transfer 258 | . 18 . . 240 Siege Activations . | . . . . . Martial Activations . | . . . . . Shielding Activations . | . . . . . Robots Disrupted . | . . . . . Combat Hostiles . | . . . . . Robots Corrupted . | . . . . . Combat Hostiles . | . . . . . Parts Fried . | . . . . . Impact Corruptions . | . . . . . Robots Melted . | . . . . . Combat Hostiles . | . . . . . Parts Melted . | . . . . . Heat Transferred 25 | . . . . 25 Parts Sabotaged . | . . . . . Parts Stolen . | . . . . . Parts Stripped . | . . . . . Power Chain Reactions . | . . . . . Alert | -11 -10 -10 -10 -9 ------- Run | Yrd Mat Min Exi Min Maximum Alert Level 1 | . 1 . . . Low Security (%) 83 | 100 67 100 . 100 Level 1 16 | . 32 . . . Level 2 . | . . . . . Level 3 . | . . . . . Level 4 . | . . . . . Level 5 . | . . . . . High Security . | . . . . . Max Security . | . . . . . Peak Influence 293 | . 293 98 . 4 Initial 98 | . . 98 . . Average 81 | . 134 78 . . Influence Increases 361 | . 353 . . 8 Destroy 0b10 Robot/C 140 | . 140 . . . Destroy Leader 20 | . 20 . . . Disable Machine 60 | . 60 . . . Destroy Structure 96 | . 88 . . 8 Lose Combat Pursuer 45 | . 45 . . . Influence Decreases 361 | . 100 195 58 8 Entered New Map 213 | . . 155 58 . Time Decay 141 | . 100 40 . 1 Lost Part 7 | . . . . 7 Squads Dispatched 1 | . 1 . . . Investigation . | . . . . . Extermination . | . . . . . Reinforcement 1 | . 1 . . . Assault . | . . . . . Garrison . | . . . . . Intercept . | . . . . . Searches Triggered . | . . . . . Construction Impeded . | . . . . . Haulers Reinforced . | . . . . . Active Scanning Responses . | . . . . . Cargo Convoy Interrupts . | . . . . . Stealth | -11 -10 -10 -10 -9 --------- Run | Yrd Mat Min Exi Min Distress Signals 1 | . 1 . . . Communications Jammed . | . . . . . Distress Signals . | . . . . . Times Spotted 38 | . 13 . . 25 Peak Tracking Total 18 | . 6 . . 18 Tactical Retreats 5 | . 2 . . 3 Traps | -11 -10 -10 -10 -9 ------- Run | Yrd Mat Min Exi Min Traps Triggered . | . . . . . Indirectly . | . . . . . Trap Hack Attempts . | . . . . . Triggered . | . . . . . Disarmed . | . . . . . Reprogrammed . | . . . . . Reused . | . . . . . Traps Extracted . | . . . . . Installed . | . . . . . Triggered . | . . . . . Machines | -11 -10 -10 -10 -9 ---------- Run | Yrd Mat Min Exi Min Machines Disabled 4 | . 4 . . . Max in Single Turn 2 | . 2 . . . Machines Repaired . | . . . . . Machines Dismantled . | . . . . . Machines Sabotaged . | . . . . . Overloaded Fab Kills . | . . . . . Hacking | -11 -10 -10 -10 -9 --------- Run | Yrd Mat Min Exi Min Machines Accessed 7 | . 2 . 5 . Terminals 1 | . 1 . . . Fabricators . | . . . . . Repair Stations 1 | . 1 . . . Recycling Units . | . . . . . Scanalyzers . | . . . . . Garrison Access . | . . . . . Total Hacks 15 | . 2 . 13 . Successful 14 | . 1 . 13 . Failed 1 | . 1 . . . Catastrophic . | . . . . . Database Lockouts . | . . . . . Manual 2 | . . . 2 . Terminals 1 | . 1 . . . Fabricators . | . . . . . Repair Stations 1 | . 1 . . . Recycling Units . | . . . . . Scanalyzers . | . . . . . Garrison Access . | . . . . . Terminal Hacks 14 | . 1 . 13 . Record 13 | . 1 . 12 . Proto ID Catalog 1 | . . . 1 . Fabricator Hacks . | . . . . . Repair Station Hacks . | . . . . . Recycling Unit Hacks . | . . . . . Scanalyzer . | . . . . . Garrison Access Hacks . | . . . . . Unauthorized Hacks . | . . . . . Terminals . | . . . . . Fabricators . | . . . . . Repair Stations . | . . . . . Recycling Units . | . . . . . Scanalyzers . | . . . . . Garrison Access . | . . . . . Data Cores Recovered . | . . . . . Used . | . . . . . Hacking Detections 1 | . 1 . . . Full Trace Events . | . . . . . Feedback Events . | . . . . . Feedback Blocked . | . . . . . Robot Schematics Acquired . | . . . . . Robots Built . | . . . . . Authchips . | . . . . . Time . | . . . . . Total Robot Build Rating . | . . . . . Part Schematics Acquired . | . . . . . Parts Built . | . . . . . Authchips . | . . . . . Time . | . . . . . Total Part Build Rating . | . . . . . Part Studies Acquired . | . . . . . Parts Repaired . | . . . . . Time . | . . . . . Parts Recycled . | . . . . . Recycled Matter . | . . . . . Retrieved Matter . | . . . . . Retrieved Components . | . . . . . Parts Scanalyzed . | . . . . . Part Schematics Acquired . | . . . . . Parts Damaged . | . . . . . Bothacking | -11 -10 -10 -10 -9 ------------ Run | Yrd Mat Min Exi Min Used RIF Installer . | . . . . . Robots Hacked . | . . . . . Non-combat . | . . . . . Combat . | . . . . . Robot Hacks Applied . | . . . . . Relay Couplers Released . | . . . . . Fabnet Peak Effective % . | . . . . . Robots Rewired . | . . . . . Allies Hacked . | . . . . . Hacks Repelled . | . . . . . Allies | -11 -10 -10 -10 -9 -------- Run | Yrd Mat Min Exi Min Total Allies . | . . . . . Largest Group . | . . . . . Highest-Rated Group . | . . . . . Highest-Rated Ally . | . . . . . Total Orders . | . . . . . Ally Attacks . | . . . . . Total Damage . | . . . . . Kills . | . . . . . Allies Corrupted . | . . . . . Allies Melted . | . . . . . Intel | -11 -10 -10 -10 -9 ------- Run | Yrd Mat Min Exi Min Active Infowar (turns) 22 | . . . 12 10 Cloaking 22 | . . . 12 10 Robot Analysis Total . | . . . . . Derelict Logs Recovered . | . . . . . Drone Launches . | . . . . . Drone Recoveries . | . . . . . Exploration | -11 -10 -10 -10 -9 ------------- Run | Yrd Mat Min Exi Min Turns Passed 954 | 53 246 97 454 104 Spaces Moved 855 | 44 192 100 468 51 Core 9 | 4 . . . 5 Treads . | . . . . . Legs . | . . . . . Wheels 846 | 40 192 100 468 46 Hover . | . . . . . Flight . | . . . . . Fastest Speed 50 | 50 80 95 95 95 Average Speed 92 | 79 82 95 95 113 Slowest Speed 350 | 150 95 95 95 350 Overloaded Moves . | . . . . . Propulsion Burnouts . | . . . . . Robots Hopped . | . . . . . Potential Cave-ins 3 | . . . . 3 Cave-ins Triggered . | . . . . . Exploration Rate (%) 33 | 3 44 33 73 14 Regions Visited 4 Branch Regions 3 Pre-discovered Areas 1 | . . . 1 . Known Exits Taken . | . . . . . Unknown Exits Taken 4 | 1 1 1 1 . Scrap Searched . | . . . . . Spaces Dug . | . . . . . Terrain Destroyed 110 | . 93 . . 17 Melee . | . . . . . Projectile 17 | . . . . 17 AOE 93 | . 93 . . . Terrain Rammed . | . . . . . Walls Destroyed . | . . . . . Machines Disabled . | . . . . . Actions | -11 -10 -10 -10 -9 --------- Run | Yrd Mat Min Exi Min Total 982 | 61 247 101 480 93 Wait 48 | . 17 1 . 30 Move 851 | 43 191 99 467 51 Hop . | . . . . . Pick Up 22 | 12 6 . 4 . Fast Attach 1 | . 1 . . . Attach 15 | 6 1 . 2 6 Detach 1 | . . . 1 . Swap 5 | . 4 1 . . Drop 12 | . 5 . 6 1 Fire 25 | . 22 . . 3 Melee . | . . . . . Ram 2 | . . . . 2 Kick . | . . . . . Crush . | . . . . . Escape Stasis . | . . . . . Rewire . | . . . . . Trap . | . . . . . Miscellaneous . | . . . . . Route ------- -11/Scrapyard -10/Materials -10/Mines -10/Exiles (discovered 2 exits: [*Min x2]) -9/Mines History --------- Turn | Location | Event 15 | -11/Scrapyard | Discovered new exit (range 15) 54 | -11/Scrapyard | Entered Materials 280 | -10/Materials | Discovered new exit (range 6) 300 | -10/Materials | Entered Mines 310 | -10/Mines | Build established: Mutant 393 | -10/Mines | Deemed a non-threat by the Exiles lab entrance 393 | -10/Mines | Discovered new exit (range 5) 397 | -10/Mines | Entered Exiles 420 | -10/Exiles | Discovered new exit (range 14) 437 | -10/Exiles | Met 8R-AWN 455 | -10/Exiles | Met EX-HEX 530 | -10/Exiles | Met EX-DEC 559 | -10/Exiles | Learned location of Zion (-7) 605 | -10/Exiles | Met EX-BIN 635 | -10/Exiles | Aligned with FarCom system 636 | -10/Exiles | Given EX-Vault access code 702 | -10/Exiles | Opened EX-Vault 709 | -10/Exiles | Found Prototype Storage 715 | -10/Exiles | Found Prototype Device 717 | -10/Exiles | Identified Cloak of Protection 719 | -10/Exiles | Found Prototype Ballistic Gun 721 | -10/Exiles | Identified AWS/Gauss 756 | -10/Exiles | Warned to stay clear of 0b10 Research branches 838 | -10/Exiles | Discovered new exit (range 14) 851 | -10/Exiles | Stole two prototypes: AWS/Gauss, Cloak of Protection 851 | -10/Exiles | Entered Mines 852 | -9/Mines | Assembled infested the area 909 | -9/Mines | Core integrity fell below 50% 919 | -9/Mines | AWS/Gauss suddenly broke down 937 | -9/Mines | Destroyed 15 combat bots 952 | -9/Mines | Core integrity fell below 20% 955 | -9/Mines | Destroyed by D-53 Grenadier with Mini Grenade Launcher Last Messages --------------- AWS/Gauss suddenly breaks down. Acquired 12 matter. Wheel destroyed. Acquired 11 matter. Acquired 18 matter. Acquired 20 matter. Dropped Broken AWS/Gauss. The unstable cave ceiling collapses. as-49551 suffers critical hit (Destroy). Destroyed Asb. Rifle. Acquired 35 matter. as-49551 destroyed. Wheel destroyed. The unstable cave ceiling collapses. Lgt. Armor Plating destroyed. Assault Rifle destroyed. The unstable cave ceiling collapses. Sml. Laser destroyed. Lgt. Ion Engine destroyed. The unstable cave ceiling collapses. Map ----- +----------------------------------------------------+ | ????????????????????????????????????????????? | | ????????????????????????????????????????????? | | ????????????????????????????????????????????? | | ????????????????????????????????????????????? | | ????????????????????????????????????????????? | | ????????????????????????????????????????????? | | ????????????????????????????????????????????? | | ????????????????????????????????????????????? | | ????????????????????????????????????????????? | | ????????????????????????????????????????????? | | ????????????????????????????????????????????? | | ????????????????????????????????????????????? | | ????????????????????????????????????????????? | | ????????????????????????????????????????????? | | ????????????????????????????????????????????? | | ???????????????????###??????????????????????? | | ??????????????????? ##?????????????????????? | | ??????????????????? ##????????????????????? | | ??????????????????? ##???????????????????? | | ??????????????????? ##??##??????????????? | | ?????????????####### ## ##?????????????? | | ??????#####?## ## #?????????????? | | ??????# ### # #?????????????? | | ????### ####??????????? | | ????# "# #??????????? | | ????###"# @ #??????????????? | | ??????#### [ ##??????????????? | | ???????# ; d# #????????????? | | ???????### % ##????????????? | | ?????????#; d % ??????????? | | ????????# ## # < # ??????????? | | ???????# #?## ##???????????? | | ??????# #???### ### #????????????? | | ?????# #??????######?? #????????????? | | ????# #??????????????? #????????????? | | ???? #????????????????? ##????????????? | | ???##?????????????????? ?????????????? | | ??????????????????????? ?????????????? | | ??????????????????????? ??????????????? | | ???????????????????????? ????????????????? | | ????????????????????????????????????????????? | | ????????????????????????????????????????????? | | ????????????????????????????????????????????? | | ????????????????????????????????????????????? | | ????????????????????????????????????????????? | | ????????????????????????????????????????????? | | ????????????????????????????????????????????? | | ????????????????????????????????????????????? | | ????????????????????????????????????????????? | | ????????????????????????????????????????????? | +----------------------------------------------------+ Best States ------------- Heat Dissipation 25 Energy Generation 10 Energy Capacity 250 Matter Stores 300 Matter Capacity 300 Sight Range 16 Terrain Scan Density 10 Cloak Strength 5 Armor Coverage 150 Evasion (%) 44 Item Schematics ----------------- None Robot Schematics ------------------ None Fabricated ------------ Nothing Repaired ---------- Nothing Studied --------- None Alien Tech Used ----------------- None Achievements -------------- Drive-By Sixth Sense Challenges ------------ None Game ------ Seed RefineryDrainedBasin Manual? 0 Play Time 00:23:39 Cumulative 63.0 hours Start 2026.01.18 @ 14:17:35 End 2026.01.18 @ 15:04:29 Sessions 1 Manual Loads 0 Difficulty Rogue Special Mode None Game No. 58 Rogue 58 Adventurer 0 Explorer 0 Win Type - Total 0 Types 0/0/0/0/0/0/0/0/0/0 Lore% 14 Gallery% 19 Achievement% 13 Wizard Run 0 Options --------- Layout 1 ASCII 0 Keyboard 0 Movement Mouse Keybinds 0 Fullscreen 1 Font 24/Smallcaps Map View 50x35 Zoom Use 0% Tactical HUD 0 Map Filters NONE Filters NONE Steam 1 RUN: b7354ec0-e5d6-4341-83d4-f8300da02b09